[Event "IIFL Wealth  4th Mumbai Junior U-13"]
[Site "Mumbai"]
[Date "2019.01.01"]
[Round "3"]
[White "Mayank Chakraborty"]
[Black "Vasudeva Varun"]
[Result "1-0"]
[ECO "B51"]
[WhiteElo "1691"]
[BlackElo "1209"]
[Annotator "NA RC"]
[PlyCount "115"]
[EventDate "2018.12.30"]
[EventType "swiss"]
[EventCountry "IND"]
[SourceTitle "playchess.com"]
[Source "ChessBase"]
[SourceQuality "1"]
[TimeControl "40/5400+30:1800+30"]

1. e4 {[%emt 0:00:00]} c5 {[%emt 0:00:00]} 2. Nf3 {[%emt 0:00:00]} d6 {[%emt 0:00:00]} 3. Bb5+ {[%emt 0:00:01]} Nd7 {[%emt 0:00:12]} 4. d4 {[%emt 0:00:23]} cxd4 {[%emt 0:00:17]} 5. Qxd4 {[%emt 0:00:16]} Ngf6 {[%emt 0:01:28]} 6. c4 {[%emt 0:02:18]} a6 {[%emt 1:31:03]} 7. Bxd7+ {[%emt 0:00:00]} Bxd7 {[%emt 0:00:00]} 8. Nc3 {[%emt 0:00:45]} g6 {[%emt 0:00:00]} 9. Bg5 {[%emt 0:00:44]} Bg7 {[%emt 0:00:00]} 10. O-O {[%emt 0:00:46]} O-O {[%emt 0:00:00]} 11. Qd3 {[%emt 0:00:47]} Bc6 {[%emt 0:00:00]} 12. Nd4 {[%emt 0:05:19]} h6 {[%emt 0:00:00]} 13. Bd2 {[%emt 0:05:18]} Nd7 {[%emt 0:00:00]} 14. Nxc6 {[%emt 0:02:01]} bxc6 {[%emt 0:00:00]} 15. Qh3 {[%emt 0:01:03]} Kh7 {[%emt 0:00:00]} 16. b3 {[%emt 0:00:37]} Nc5 {[%emt 0:00:00]} 17. Rae1 {[%emt 0:00:44]} Qc8 {[%emt 0:00:00]} 18. Qh4 {[%emt 0:01:41]} Qe6 {[%emt 0:00:00]} 19. Kh1 {[%emt 0:45:02]} Qf6 {[%emt 0:00:00]} 20. Qxf6 {[%emt 0:01:44]} Bxf6 {[%emt 0:00:00]} 21. f3 {[%emt 0:00:23]} Rad8 {[%emt 0:00:00]} 22. Rd1 {[%emt 0:00:33]} e5 {[%emt 0:00:00]} 23. Be3 {[%emt 0:01:20]} Ne6 24. Ne2 {[%emt 0:07:00]} Bg5 {[%emt 0:00:00]} 25. Bxg5 {[%emt 0:00:56]} Nxg5 {[%emt 0:00:00]} 26. Rd2 {[%emt 0:00:31]} f5 {[%emt 0:00:00]} 27. exf5 {[%emt 0:00:43]} gxf5 {[%emt 0:00:00]} 28. Rfd1 {[%emt 0:00:12]} Rf6 {[%emt 0:00:00]} 29. h4 {[%emt 0:03:08]} Nf7 {[%emt 0:00:00]} 30. Nc3 {[%emt 0:00:09]} Kg7 {[%emt 0:00:00]} 31. Na4 {[%emt 0:00:27]} e4 {[%emt 0:00:00]} 32. fxe4 {[%emt 0:01:35]} fxe4 {[%emt 0:00:00]} 33. Rd4 {[%emt 0:00:28]} Re6 {[%emt 0:00:00]} 34. Re1 {[%emt 0:05:40]} e3 {[%emt 0:00:00]} 35. Rd3 {[%emt 0:00:37]} Rde8 {[%emt 0:00:00]} 36. Nc3 {[%emt 0:01:09]} h5 {[%emt 0:00:00]} 37. Nd1 {[%emt 0:01:33]} Nh6 {[%emt 0:00:00]} 38. Rdxe3 {[%emt 0:00:14]} Rxe3 {[%emt 0:00:00]} 39. Rxe3 {[%emt 0:00:09]} Rf8 {[%emt 0:00:00]} 40. Kg1 {[%emt 0:00:00]} Nf5 {[%emt 0:00:00]} 41. Rd3 {[%emt 0:02:25]} Re8 {[%emt 0:00:00]} 42. Kf2 {[%emt 0:03:03]} Kg6 {[%emt 0:00:00]} 43. Ne3 {[%emt 0:00:20]} Re6 {[%emt 0:00:00]} 44. Nxf5 {[%emt 0:00:15]} Kxf5 {[%emt 0:00:00]} 45. Kf3 {[%emt 0:00:34]} Rf6 {[%emt 0:00:00]} 46. Re3 {[%emt 0:02:00]} Re6 {[%emt 0:00:00]} 47. Rxe6 {[%emt 0:00:09]} Kxe6 {[%emt 0:00:00]} 48. Ke4 {[%emt 0:00:32]} Kf6 {[%emt 0:00:00]} 49. b4 {[%emt 0:00:19]} c5 {[%emt 0:00:00]} 50. bxc5 {[%emt 0:00:26]} dxc5 {[%emt 0:00:00]} 51. Kd5 {[%emt 0:00:21]} Kf5 {[%emt 0:00:00]} 52. Kxc5 {[%emt 0:00:02]} Kg4 {[%emt 0:00:00]} 53. Kd4 {[%emt 0:00:09]} Kxh4 {[%emt 0:00:00]} 54. c5 {[%emt 0:00:08]} Kg3 {[%emt 0:00:00]} 55. c6 {[%emt 0:00:07]} Kxg2 {[%emt 0:00:00]} 56. c7 {[%emt 0:00:07]} h4 {[%emt 0:00:00]} 57. c8=Q {[%emt 0:00:06]} h3 {[%emt 0:00:00]} 58. Qg4+ 1-0

[Event "IIFL Wealth  4th Mumbai Junior U-13"]
[Site "Mumbai"]
[Date "2019.01.01"]
[Round "3"]
[White "Bang Atharva"]
[Black "Tikam Aradhya"]
[Result "1-0"]
[ECO "A05"]
[WhiteElo "1582"]
[BlackElo "1332"]
[Annotator "NA RC"]
[PlyCount "83"]
[EventDate "2018.12.30"]
[EventType "swiss"]
[EventCountry "IND"]
[SourceTitle "playchess.com"]
[Source "ChessBase"]
[SourceQuality "1"]
[TimeControl "40/5400+30:1800+30"]

1. Nf3 {[%emt 0:00:00]} Nf6 {[%emt 0:00:00]} 2. e3 {[%emt 0:00:00]} e6 {[%emt 0:00:00]} 3. b3 {[%emt 0:00:00]} b6 {[%emt 0:00:00]} 4. Bb2 {[%emt 0:00:06]} Bb7 {[%emt 0:00:00]} 5. d4 {[%emt 0:00:17]} d5 {[%emt 0:00:00]} 6. Bd3 {[%emt 0:00:09]} c5 {[%emt 0:00:10]} 7. Nbd2 {[%emt 0:00:12]} Nc6 {[%emt 0:00:25]} 8. O-O {[%emt 0:00:21]} Rc8 {[%emt 0:00:18]} 9. a3 {[%emt 0:01:29]} Na5 {[%emt 0:01:48]} 10. Ne5 {[%emt 0:07:41]} Nd7 {[%emt 0:03:26]} 11. Qe2 {[%emt 0:12:24]} Qc7 {[%emt 0:02:11]} 12. Bb5 {[%emt 0:09:28]} Nc6 {[%emt 0:00:15]} 13. f4 {[%emt 0:02:40]} Be7 {[%emt 0:04:09]} 14. Ndf3 {[%emt 0:11:31]} f6 {[%emt 0:11:32]} 15. Nxd7 {[%emt 0:00:36]} Qxd7 {[%emt 0:00:18]} 16. Nh4 {[%emt 0:05:38]} g6 {[%emt 0:01:33]} 17. Nf3 {[%emt 0:07:31]} Ra8 {[%emt 0:10:04]} 18. Rad1 {[%emt 0:06:05]} a6 {[%emt 0:01:43]} 19. Bd3 {[%emt 0:00:15]} O-O {[%emt 0:04:55]} 20. dxc5 {[%emt 0:08:20]} bxc5 {[%emt 0:02:27]} 21. c4 {[%emt 0:00:57]} Qe8 {[%emt 0:03:15]} 22. f5 {[%emt 0:08:13]} exf5 {[%emt 0:02:53]} 23. cxd5 {[%emt 0:00:19]} Nb8 {[%emt 0:01:38]} 24. d6 {[%emt 0:00:52]} Bd8 {[%emt 0:00:02]} 25. Bc4+ {[%emt 0:00:16]} Kg7 {[%emt 0:01:54]} 26. d7 {[%emt 0:05:41]} Nxd7 {[%emt 0:03:14]} 27. Ng5 {[%emt 0:00:07]} Kh8 {[%emt 0:00:08]} 28. Ne6 {[%emt 0:00:06]} Nb6 {[%emt 0:02:18]} 29. Nxf8 {[%emt 0:02:18]} Nxc4 {[%emt 0:00:55]} 30. Qxc4 {[%emt 0:00:46]} Qxf8 {[%emt 0:00:09]} 31. Qe6 {[%emt 0:00:35]} Be7 {[%emt 0:03:51]} 32. Rd7 {[%emt 0:00:32]} Bc8 {[%emt 0:00:01]} 33. Qxe7 {[%emt 0:00:29]} Bxd7 {[%emt 0:00:06]} 34. Bxf6+ {[%emt 0:00:07]} Kg8 {[%emt 0:00:33]} 35. Qxd7 {[%emt 0:00:05]} Rb8 {[%emt 0:01:05]} 36. Qd5+ {[%emt 0:03:48]} Qf7 {[%emt 0:00:06]} 37. Qxf7+ {[%emt 0:00:50]} Kxf7 {[%emt 0:00:01]} 38. Bg5 {[%emt 0:00:00]} Rxb3 39. Rc1 {[%emt 0:00:07]} Rb5 {[%emt 0:00:59]} 40. a4 {[%emt 0:00:00]} Ra5 {[%emt 0:00:00]} 41. Rc4 {[%emt 0:00:38]} Ke8 {[%emt 0:00:37]} 42. Bf6 {[%emt 0:00:05]} 1-0

[Event "IIFL Wealth  4th Mumbai Junior U-13"]
[Site "Mumbai"]
[Date "2019.01.01"]
[Round "3"]
[White "Laddha, Shubh Jayesh"]
[Black "Keshav Padmanabhan"]
[Result "1-0"]
[ECO "C96"]
[WhiteElo "1567"]
[BlackElo "1272"]
[Annotator "NA RC"]
[PlyCount "89"]
[EventDate "2018.12.30"]
[EventType "swiss"]
[EventCountry "IND"]
[SourceTitle "playchess.com"]
[Source "ChessBase"]
[SourceQuality "1"]
[TimeControl "40/5400+30:1800+30"]

1. e4 {[%emt 0:00:00]} e5 {[%emt 0:00:00]} 2. Nf3 {[%emt 0:00:00]} Nc6 {[%emt 0:00:00]} 3. Bb5 {[%emt 0:00:00]} a6 {[%emt 0:00:00]} 4. Ba4 {[%emt 0:00:00]} b5 {[%emt 0:00:01]} 5. Bb3 {[%emt 0:00:00]} Nf6 {[%emt 0:00:04]} 6. O-O {[%emt 0:00:07]} Be7 {[%emt 0:00:07]} 7. Re1 {[%emt 0:00:07]} d6 {[%emt 0:00:10]} 8. c3 {[%emt 0:00:06]} Na5 {[%emt 0:16:22]} 9. Bc2 {[%emt 0:00:22]} c5 {[%emt 0:01:18]} 10. h3 {[%emt 0:08:57]} O-O {[%emt 0:01:57]} 11. d4 {[%emt 0:01:11]} Nc6 {[%emt 0:01:16]} 12. Nbd2 {[%emt 0:14:06]} cxd4 {[%emt 0:00:30]} 13. cxd4 {[%emt 0:00:13]} Re8 {[%emt 0:02:44]} 14. d5 {[%emt 0:01:57]} Nb8 {[%emt 0:01:35]} 15. Nf1 {[%emt 0:01:24]} Bf8 {[%emt 0:00:18]} 16. Ng3 {[%emt 0:01:06]} g6 {[%emt 0:00:16]} 17. Be3 {[%emt 0:02:18]} Nbd7 {[%emt 0:02:25]} 18. Bd3 {[%emt 0:04:07]} b4 {[%emt 0:09:57]} 19. Qd2 {[%emt 0:05:54]} a5 {[%emt 0:01:55]} 20. b3 {[%emt 0:03:48]} Bb7 {[%emt 0:09:49]} 21. Rac1 {[%emt 0:01:49]} Rc8 {[%emt 0:00:50]} 22. Qe2 {[%emt 0:15:12]} Rxc1 {[%emt 0:03:59]} 23. Rxc1 {[%emt 0:00:05]} Qa8 {[%emt 0:00:13]} 24. Nd2 {[%emt 0:03:40]} Rc8 {[%emt 0:08:02]} 25. Nc4 {[%emt 0:05:41]} Ba6 {[%emt 0:01:18]} 26. Nxe5 {[%emt 0:05:36]} dxe5 {[%emt 0:06:40]} 27. Bxa6 {[%emt 0:00:29]} Rxc1+ {[%emt 0:00:43]} 28. Bxc1 {[%emt 0:00:06]} Nc5 {[%emt 0:01:00]} 29. Bc4 {[%emt 0:01:44]} a4 {[%emt 0:05:27]} 30. f3 {[%emt 0:10:28]} h5 {[%emt 0:06:43]} 31. Nf1 {[%emt 0:05:12]} axb3 {[%emt 0:03:37]} 32. axb3 {[%emt 0:00:13]} Ne8 {[%emt 0:00:48]} 33. Qc2 {[%emt 0:07:17]} Nd6 {[%emt 0:03:58]} 34. Be3 {[%emt 0:01:53]} Qa5 {[%emt 0:03:50]} 35. Qf2 {[%emt 0:00:54]} Nxc4 {[%emt 0:02:02]} 36. bxc4 {[%emt 0:00:05]} b3 {[%emt 0:00:13]} 37. Qb2 {[%emt 0:01:50]} Qa2 {[%emt 0:04:17]} 38. Qxe5 {[%emt 0:00:21]} b2 {[%emt 0:01:23]} 39. Bd4 f6 {[%emt 0:01:35]} 40. Qxf6 {[%emt 0:00:00]} Qa7 {[%emt 0:00:00]} 41. Qh8+ {[%emt 0:01:50]} Kf7 {[%emt 0:01:04]} 42. Qh7+ {[%emt 0:00:13]} Ke8 {[%emt 0:00:09]} 43. Qxa7 {[%emt 0:00:17]} b1=Q {[%emt 0:00:14]} 44. Bxc5 {[%emt 0:00:24]} Bxc5+ {[%emt 0:00:17]} 45. Qxc5 {[%emt 0:00:05]} 1-0

[Event "IIFL Wealth  4th Mumbai Junior U-13"]
[Site "Mumbai"]
[Date "2019.01.01"]
[Round "3"]
[White "Sarvade Mihiir"]
[Black "Kinkhabwala Hrithik"]
[Result "1-0"]
[ECO "D35"]
[WhiteElo "1563"]
[BlackElo "1244"]
[Annotator "NA"]
[PlyCount "133"]
[EventDate "2018.12.30"]
[EventType "swiss"]
[EventCountry "IND"]
[SourceTitle "playchess.com"]
[Source "ChessBase"]
[SourceQuality "1"]
[TimeControl "40/5400+30:1800+30"]

1. d4 {[%emt 0:03:06]} d5 {[%emt 0:00:00]} 2. c4 {[%emt 0:00:07]} e6 {[%emt 0:00:00]} 3. Nc3 {[%emt 0:00:04]} Nf6 {[%emt 0:00:00]} 4. cxd5 {[%emt 0:00:04]} exd5 {[%emt 0:00:00]} 5. Bg5 {[%emt 0:00:06]} Be7 {[%emt 0:00:29]} 6. e3 {[%emt 0:00:07]} O-O {[%emt 0:00:39]} 7. Bd3 {[%emt 0:00:17]} h6 {[%emt 0:00:42]} 8. Bh4 {[%emt 0:02:58]} b6 {[%emt 0:01:47]} 9. Nf3 {[%emt 0:04:24]} Bb7 {[%emt 0:02:31]} 10. O-O {[%emt 0:06:07]} Ne4 {[%emt 0:03:38]} 11. Bxe7 {[%emt 0:06:45]} Qxe7 {[%emt 0:00:11]} 12. Qc2 {[%emt 0:12:09]} Nd7 {[%emt 0:07:27]} 13. Nxe4 {[%emt 0:18:36]} dxe4 {[%emt 0:40:59]} 14. Qxc7 {[%emt 0:01:20]} Bd5 {[%emt 0:02:36]} 15. Ne5 {[%emt 0:03:40]} exd3 {[%emt 0:00:57]} 16. Qxd7 {[%emt 0:01:36]} Qxd7 {[%emt 0:00:30]} 17. Nxd7 {[%emt 0:00:02]} Rfc8 {[%emt 0:00:49]} 18. Ne5 {[%emt 0:11:00]} d2 {[%emt 0:01:56]} 19. Rfd1 {[%emt 0:19:06]} Rc2 {[%emt 0:03:51]} 20. Kf1 {[%emt 0:01:00]} Rac8 {[%emt 0:05:25]} 21. Nd3 {[%emt 0:01:43]} a5 {[%emt 0:04:27]} 22. Ke2 {[%emt 0:01:13]} Bxg2 {[%emt 0:01:33]} 23. Rxd2 {[%emt 0:00:31]} Bf3+ {[%emt 0:00:26]} 24. Ke1 {[%emt 0:00:26]} f6 {[%emt 0:00:45]} 25. b3 {[%emt 0:03:49]} Kf7 {[%emt 0:00:24]} 26. Rb1 {[%emt 0:01:28]} Kg6 {[%emt 0:00:16]} 27. Rxc2 {[%emt 0:00:25]} Rxc2 {[%emt 0:00:08]} 28. Rb2 {[%emt 0:00:11]} Rxb2 {[%emt 0:03:18]} 29. Nxb2 {[%emt 0:00:00]} b5 {[%emt 0:00:37]} 30. Nd1 {[%emt 0:00:55]} Kh5 {[%emt 0:07:18]} 31. Nc3 {[%emt 0:00:25]} Bc6 {[%emt 0:01:52]} 32. d5 {[%emt 0:00:18]} Bd7 {[%emt 0:00:09]} 33. Ne4 {[%emt 0:00:34]} Kg4 {[%emt 0:03:27]} 34. Nc5 {[%emt 0:00:19]} Bc8 {[%emt 0:00:11]} 35. d6 {[%emt 0:00:17]} Kh3 {[%emt 0:00:06]} 36. d7 {[%emt 0:00:14]} Bxd7 {[%emt 0:00:02]} 37. Nxd7 {[%emt 0:00:06]} Kxh2 {[%emt 0:00:06]} 38. Kf1 {[%emt 0:01:13]} h5 {[%emt 0:00:18]} 39. e4 {[%emt 0:01:04]} h4 {[%emt 0:00:23]} 40. f4 {[%emt 0:00:00]} Kg3 {[%emt 0:00:00]} 41. e5 {[%emt 0:01:41]} h3 {[%emt 0:05:09]} 42. Kg1 {[%emt 0:00:12]} Kxf4 {[%emt 0:00:15]} 43. e6 {[%emt 0:00:10]} g5 {[%emt 0:00:08]} 44. e7 {[%emt 0:00:15]} g4 {[%emt 0:00:07]} 45. e8=Q {[%emt 0:00:06]} g3 {[%emt 0:00:04]} 46. Qb8+ {[%emt 0:00:06]} Kf3 {[%emt 0:00:58]} 47. Qb7+ {[%emt 0:00:15]} Kf4 {[%emt 0:00:13]} 48. Nxf6 {[%emt 0:00:13]} g2 {[%emt 0:00:52]} 49. Nh5+ {[%emt 0:00:13]} Kg4 {[%emt 0:00:28]} 50. Qe4+ {[%emt 0:00:18]} Kxh5 {[%emt 0:00:30]} 51. Qf4 {[%emt 0:00:01]} b4 {[%emt 0:00:46]} 52. Qg3 {[%emt 0:00:09]} Kh6 {[%emt 0:00:20]} 53. Qxh3+ {[%emt 0:00:05]} Kg5 {[%emt 0:00:12]} 54. Qxg2+ {[%emt 0:00:02]} Kf4 {[%emt 0:00:07]} 55. Kf2 {[%emt 0:00:10]} a4 {[%emt 0:00:13]} 56. bxa4 {[%emt 0:00:44]} Ke5 {[%emt 0:00:07]} 57. Ke3 {[%emt 0:00:05]} Kd6 {[%emt 0:00:13]} 58. Kd4 {[%emt 0:00:07]} Ke6 {[%emt 0:00:05]} 59. Qg6+ {[%emt 0:00:04]} Ke7 {[%emt 0:00:10]} 60. Ke5 {[%emt 0:00:08]} b3 {[%emt 0:00:08]} 61. axb3 {[%emt 0:00:05]} Kd7 {[%emt 0:00:07]} 62. Qd6+ {[%emt 0:00:37]} Kc8 {[%emt 0:00:19]} 63. Qc6+ {[%emt 0:00:28]} Kb8 {[%emt 0:00:08]} 64. Qd7 {[%emt 0:00:04]} Ka8 {[%emt 0:00:08]} 65. Kd6 {[%emt 0:00:03]} Kb8 {[%emt 0:00:10]} 66. Kc6 {[%emt 0:00:03]} Ka8 {[%emt 0:00:08]} 67. Qb7# {[%emt 0:00:12]} 1-0

[Event "IIFL Wealth  4th Mumbai Junior U-13"]
[Site "Mumbai"]
[Date "2019.01.01"]
[Round "3"]
[White "Adireddy Tarun"]
[Black "Medhansh Rathi"]
[Result "1-0"]
[ECO "D85"]
[WhiteElo "1553"]
[BlackElo "1194"]
[Annotator "NA RC"]
[PlyCount "107"]
[EventDate "2018.12.30"]
[EventType "swiss"]
[EventCountry "IND"]
[SourceTitle "playchess.com"]
[Source "ChessBase"]
[SourceQuality "1"]
[TimeControl "40/5400+30:1800+30"]

1. d4 {[%emt 0:02:19]} Nf6 {[%emt 0:00:00]} 2. c4 {[%emt 0:00:06]} g6 {[%emt 0:00:00]} 3. Nc3 {[%emt 0:00:03]} d5 {[%emt 0:00:00]} 4. cxd5 {[%emt 0:00:05]} Nxd5 {[%emt 0:00:00]} 5. e4 {[%emt 0:00:05]} Nxc3 {[%emt 0:00:09]} 6. bxc3 {[%emt 0:00:05]} Bg7 {[%emt 0:00:08]} 7. Bg5 {[%emt 0:00:10]} c5 {[%emt 0:01:24]} 8. Rc1 {[%emt 0:00:02]} cxd4 {[%emt 0:09:43]} 9. cxd4 {[%emt 0:00:02]} O-O {[%emt 0:00:57]} 10. Nf3 {[%emt 0:15:40]} Bg4 {[%emt 0:02:52]} 11. d5 {[%emt 0:01:27]} h6 {[%emt 0:02:09]} 12. Bd2 {[%emt 0:12:04]} e6 {[%emt 0:21:11]} 13. Bb4 {[%emt 0:00:15]} Re8 {[%emt 0:00:55]} 14. Bb5 {[%emt 0:06:02]} Nd7 {[%emt 0:04:50]} 15. O-O {[%emt 0:08:00]} a6 {[%emt 0:05:35]} 16. Be2 {[%emt 0:01:37]} exd5 {[%emt 0:02:11]} 17. exd5 {[%emt 0:00:47]} Nf6 {[%emt 0:02:34]} 18. h3 {[%emt 0:00:26]} Bf5 {[%emt 0:00:49]} 19. d6 {[%emt 0:05:45]} Bf8 {[%emt 0:05:26]} 20. Nh4 {[%emt 0:15:25]} Bd7 {[%emt 0:02:57]} 21. Re1 {[%emt 0:20:19]} Ne4 {[%emt 0:06:33]} 22. Nf3 {[%emt 0:08:22]} Bc6 {[%emt 0:00:36]} 23. Nd4 {[%emt 0:01:26]} Bd7 {[%emt 0:01:43]} 24. Bf3 {[%emt 0:00:50]} Nxd6 {[%emt 0:00:46]} 25. Bxd6 {[%emt 0:00:01]} Bxd6 {[%emt 0:00:26]} 26. Bxb7 {[%emt 0:00:15]} Rb8 {[%emt 0:00:15]} 27. Rxe8+ {[%emt 0:01:02]} Qxe8 {[%emt 0:00:19]} 28. Bxa6 {[%emt 0:00:02]} Ba4 {[%emt 0:00:59]} 29. Qd3 {[%emt 0:00:51]} Qe5 {[%emt 0:00:23]} 30. Nf3 {[%emt 0:00:32]} Qf4 {[%emt 0:01:30]} 31. Rc4 {[%emt 0:00:46]} Qf6 {[%emt 0:00:26]} 32. g3 {[%emt 0:00:36]} Bd7 {[%emt 0:00:21]} 33. Rd4 {[%emt 0:00:22]} Rb6 {[%emt 0:00:45]} 34. Kg2 {[%emt 0:00:15]} Bf5 {[%emt 0:00:43]} 35. Qc4 {[%emt 0:00:39]} Rb4 {[%emt 0:01:18]} 36. Qd5 {[%emt 0:00:31]} Rxd4 {[%emt 0:00:27]} 37. Qxd4 {[%emt 0:00:01]} Qe6 {[%emt 0:00:23]} 38. g4 {[%emt 0:00:52]} Be4 {[%emt 0:00:22]} 39. Bc4 {[%emt 0:00:20]} Bxf3+ {[%emt 0:00:15]} 40. Kxf3 {[%emt 0:00:00]} Qd7 {[%emt 0:00:00]} 41. Qe4 {[%emt 0:04:24]} Qd8 {[%emt 0:02:47]} 42. Qxg6+ {[%emt 0:00:09]} Kh8 {[%emt 0:00:18]} 43. Qxh6+ {[%emt 0:00:06]} Kg8 {[%emt 0:00:01]} 44. Qg6+ {[%emt 0:01:21]} Kh8 {[%emt 0:00:03]} 45. Qh5+ {[%emt 0:00:14]} Kg8 {[%emt 0:00:25]} 46. Bxf7+ {[%emt 0:00:38]} Kg7 {[%emt 0:00:25]} 47. Qg6+ {[%emt 0:00:03]} Kf8 {[%emt 0:00:06]} 48. Qg8+ {[%emt 0:00:12]} Ke7 {[%emt 0:00:18]} 49. Qxd8+ {[%emt 0:00:06]} Kxd8 {[%emt 0:00:05]} 50. g5 {[%emt 0:00:17]} Ke7 {[%emt 0:00:14]} 51. Bb3 {[%emt 0:00:13]} Ba3 {[%emt 0:00:09]} 52. Kg4 {[%emt 0:00:06]} Kf8 {[%emt 0:00:05]} 53. h4 {[%emt 0:00:07]} Kg7 {[%emt 0:00:12]} 54. f4 {[%emt 0:00:02]} 1-0

[Event "IIFL Wealth  4th Mumbai Junior U-13"]
[Site "Mumbai"]
[Date "2019.01.01"]
[Round "3"]
[White "Bajaj Prakhar"]
[Black "Pranesh M"]
[Result "0-1"]
[ECO "D02"]
[WhiteElo "1551"]
[BlackElo "2125"]
[Annotator "ChessBase"]
[PlyCount "22"]
[EventDate "2018.12.30"]
[EventType "swiss"]
[EventCountry "IND"]
[SourceTitle "playchess.com"]
[Source "ChessBase"]
[SourceQuality "1"]
[TimeControl "40/5400+30:1800+30"]

1. d4 {[%emt 0:02:13]} d5 {[%emt 0:00:00]} 2. Nf3 {[%emt 0:00:02]} Nf6 {[%emt 0:00:00]} 3. Bf4 {[%emt 0:00:02]} e6 {[%emt 0:00:00]} 4. e3 {[%emt 0:00:11]} Bd6 {[%emt 0:00:00]} 5. Bg3 {[%emt 0:00:32]} c5 {[%emt 0:00:09]} 6. c3 {[%emt 0:00:06]} Nc6 {[%emt 0:00:05]} 7. Nbd2 {[%emt 0:00:14]} O-O {[%emt 0:00:25]} 8. Bd3 {[%emt 0:00:05]} Qe7 {[%emt 0:01:39]} 9. Ne5 {[%emt 0:00:31]} Bxe5 {[%emt 0:00:55]} 10. dxe5 {[%emt 0:00:31]} Nd7 {[%emt 0:00:07]} 11. O-O {[%emt 0:14:47]} b6 {[%emt 0:03:43]} 0-1

[Event "IIFL Wealth  4th Mumbai Junior U-13"]
[Site "Mumbai"]
[Date "2019.01.01"]
[Round "3"]
[White "Mahi Amit Doshi"]
[Black "Gosrani, Reeyan"]
[Result "1-0"]
[ECO "D00"]
[WhiteElo "1551"]
[BlackElo "1190"]
[Annotator "NA RC"]
[PlyCount "38"]
[EventDate "2018.12.30"]
[EventType "swiss"]
[EventCountry "IND"]
[SourceTitle "playchess.com"]
[Source "ChessBase"]
[SourceQuality "1"]
[TimeControl "40/5400+30:1800+30"]

1. d4 {[%emt 0:00:00]} d5 {[%emt 0:00:00]} 2. Bf4 {[%emt 0:00:00]} Nf6 {[%emt 0:00:00]} 3. e3 {[%emt 0:00:00]} a6 {[%emt 0:00:25]} 4. Nf3 {[%emt 0:00:00]} e6 {[%emt 0:00:45]} 5. Bd3 {[%emt 0:00:14]} h6 {[%emt 0:02:42]} 6. h3 {[%emt 0:00:04]} Bd6 {[%emt 0:00:12]} 7. Bxd6 {[%emt 0:00:11]} Qxd6 {[%emt 0:00:12]} 8. O-O {[%emt 0:00:25]} O-O {[%emt 0:00:28]} 9. c4 {[%emt 0:01:49]} dxc4 {[%emt 0:00:16]} 10. Bxc4 {[%emt 0:00:09]} b5 {[%emt 0:00:07]} 11. Bd3 {[%emt 0:00:20]} Bb7 {[%emt 0:00:14]} 12. Nc3 {[%emt 0:00:47]} Nbd7 {[%emt 0:02:36]} 13. Rc1 {[%emt 0:00:26]} c5 {[%emt 0:00:36]} 14. dxc5 {[%emt 0:00:54]} Nxc5 {[%emt 0:00:25]} 15. Bh7+ {[%emt 0:00:04]} Kxh7 {[%emt 0:00:35]} 16. Qxd6 {[%emt 0:00:02]} Ncd7 {[%emt 0:01:01]} 17. Ne5 {[%emt 0:03:28]} Rad8 {[%emt 0:00:45]} 18. Nxd7 {[%emt 0:01:02]} Rxd7 {[%emt 0:03:14]} 19. Qxf8 {[%emt 0:00:05]} Rc7 {[%emt 0:19:00]} 1-0

[Event "IIFL Wealth  4th Mumbai Junior U-13"]
[Site "Mumbai"]
[Date "2019.01.01"]
[Round "3"]
[White "Jain Adi"]
[Black "Kadam Om Manish"]
[Result "0-1"]
[ECO "A13"]
[WhiteElo "1545"]
[BlackElo "1944"]
[Annotator "NA RC"]
[PlyCount "74"]
[EventDate "2018.12.30"]
[EventType "swiss"]
[EventCountry "IND"]
[SourceTitle "playchess.com"]
[Source "ChessBase"]
[SourceQuality "1"]
[TimeControl "40/5400+30:1800+30"]

{[%evp 19,73,-6,32767,0,-3,32767,-43,32767,32767,-102,-43,-97,-82,-80,-87,-118,-110,-141,-128,-135,-151,-218,-220,-216,-208,-235,-249,-239,-274,-233,-226,-219,32767,32767,32767,32767,32767,-173,-176,-187,-198,-202,32767,32767,-222,32767,32767,32767,32767,32767,32767,32767,-693,-675,-701,-1449]} 1. Nf3 {[%emt 0:00:22]} d5 {[%emt 0:00:00]} 2. c4 {[%emt 0:00:07]} e6 {[%emt 0:00:00]} 3. g3 {[%emt 0:00:07]} Nf6 {[%emt 0:00:00]} 4. Bg2 {[%emt 0:00:06]} Be7 {[%emt 0:00:00]} 5. d4 {[%emt 0:00:08]} O-O {[%emt 0:00:00]} 6. O-O {[%emt 0:00:58]} dxc4 {[%emt 0:00:12]} 7. Qc2 {[%emt 0:01:14]} a6 {[%emt 0:00:09]} 8. Qxc4 {[%emt 0:00:32]} b5 {[%emt 0:00:29]} 9. Qc2 {[%emt 0:00:11]} Bb7 {[%emt 0:00:17]} 10. Bf4 {[%emt 0:14:42]} Nd5 {[%emt 0:02:03]} 11. Bd2 {[%emt 0:02:04]} Nd7 {[%emt 0:01:25] LiveBook: 16 Games E05: Open Catalan: 5 Nf3 Be7} 12. a3 {[%emt 0:00:39]} (12. Ba5 Qc8 13. Rc1 c5 14. Qd1 Qb8 15. Nbd2 Rc8 16. e3 N5f6 17. Qe2 cxd4 18. Nxd4 Bxg2 19. Kxg2 {½-½ (50) Zanan,E (2482)-Deutsch,E (2350) Israel 2018}) 12... c5 {[%emt 0:10:08]} 13. Nc3 {[%emt 0:10:56]} Rc8 {[%emt 0:02:55]} 14. Qd1 $146 {[%emt 0:12:45]} ({Predecessor:} 14. Rfc1 Nxc3 15. Qxc3 Bf6 16. Qd3 Bxf3 17. Qxf3 Bxd4 18. Bc3 Bxc3 19. Rxc3 {0-1 (48) Khanov,V-Selin,O (2281) Donskoj 2000}) 14... Bf6 {[%emt 0:06:46]} 15. Nxd5 {[%emt 0:03:06]} Bxd5 {[%emt 0:00:39]} 16. Bc3 {[%emt 0:00:56]} Nb6 {[%emt 0:03:43]} 17. Ba5 {[%emt 0:04:32]} cxd4 {[%emt 0:02:47]} 18. Rc1 {[%emt 0:08:56]} Rxc1 {[%emt 0:00:45]} 19. Qxc1 {[%emt 0:00:32] [#]} Qb8 $1 {[%emt 0:01:09]} 20. Rd1 {[%emt 0:01:00]} (20. Bxb6 $17 {is a better defense.} Qxb6 21. Qc2) 20... Rc8 {[%emt 0:00:30]} 21. Qb1 {[%emt 0:01:06] [#]} Nc4 $1 {[%emt 0:01:24]} 22. Be1 {[%emt 0:01:41] [#]} d3 $1 {[%emt 0:00:58]} 23. exd3 {[%emt 0:02:28]} Nxb2 {[%emt 0:00:22]} 24. Rd2 {[%emt 0:01:00]} Na4 {[%emt 0:02:27]} 25. Rc2 {[%emt 0:01:50]} Nc5 {[%emt 0:02:38]} 26. Qc1 {[%emt 0:01:09]} Bxf3 {[%emt 0:02:25]} 27. Bxf3 {[%emt 0:00:54]} Bd4 {[%emt 0:00:01]} 28. Bd2 {[%emt 0:11:52] [#]} (28. Bb4 $17 {was necessary.} Qd6 29. Kg2) 28... Bxf2+ $1 {[%emt 0:08:05]} 29. Kf1 {[%emt 0:03:02]} Bd4 {[%emt 0:01:14]} 30. Bb4 {[%emt 0:02:23]} Qb6 {[%emt 0:03:57]} 31. Bc3 {[%emt 0:05:48]} Nd7 {[%emt 0:03:57]} ({But not} 31... Nxd3 $2 32. Bxd4 Rxc2 33. Qxc2 $18 (33. Bxb6 $2 {loses.} Nxc1 34. Bb7 Rc3 $19)) 32. Bxd4 {[%emt 0:00:43]} Rxc2 {[%emt 0:00:01]} 33. Qxc2 {[%emt 0:00:19]} Qxd4 {[%emt 0:00:02]} 34. Qc8+ {[%emt 0:00:17]} Nf8 {[%emt 0:00:00]} 35. Qxa6 {[%emt 0:00:36]} Qa1+ {[%emt 0:00:30]} 36. Kf2 {[%emt 0:00:16] [#]} b4 $19 {[%emt 0:00:02]} 37. Bd1 {[%emt 0:02:39]} bxa3 {[%emt 0:00:54]} 0-1